bitfinex-derivatives/quotes_BTCF0:USTF0_20230102
["timestamp","ask_amount","ask_price","bid_price","bid_amount"]
[1672650698405,0.5705,16743.0,16742.0,0.3995249]
[1672650706072,0.57033372,16743.0,16742.0,0.3995249]
[1672650710802,0.57033372,16743.0,16741.0,0.3007]
[1672650711013,0.1495,16742.0,16741.0,0.3007]
[1672650712487,0.1825,16742.0,16741.0,0.3007]
[1672650713007,0.1825,16742.0,16740.0,0.4]
[1672650713230,0.1495,16741.0,16740.0,0.7007]
[1672650715108,0.1635,16741.0,16740.0,0.7007]
[1672650715319,0.1631,16741.0,16740.0,0.4]
[1672650715638,0.1631,16741.0,16740.0,0.7007]
[1672650718368,0.1631,16741.0,16740.0,0.4]
[1672650718577,0.1631,16741.0,16740.0,0.7007]
[1672650725206,0.1635,16741.0,16740.0,0.7007]
[1672650731104,0.5635,16741.0,16740.0,0.7007]
[1672650734047,0.5635,16741.0,16740.0,0.4]
[1672650735197,0.5621,16741.0,16740.0,0.4]
[1672650735407,0.1621,16741.0,16740.0,0.4]
[1672650744465,0.1621,16741.0,16740.0,0.7007]
[1672650745304,0.1631,16741.0,16740.0,0.7007]
[1672650745935,0.1631,16741.0,16740.0,0.4]
[1672650746133,0.1631,16741.0,16740.0,0.7007]
[1672650751500,0.1495,16740.0,16736.0,1.33532097]
[1672650751710,0.1495,16740.0,16736.0,0.3007]
[1672650751711,0.1483,16737.0,16736.0,0.3007]
[1672650751918,0.1483,16737.0,16736.0,4.0707]
[1672650753605,0.1633,16737.0,16736.0,0.30061]
[1672650754231,0.1633,16737.0,16736.0,4.07061]
[1672650754440,0.1633,16737.0,16736.0,0.30061]
[1672650755288,0.1645,16737.0,16736.0,0.30061]
[1672650757389,0.1645,16737.0,16735.0,4.3195]
[1672650759385,0.1635,16737.0,16735.0,4.3195]
[1672650760437,0.1635,16737.0,16736.0,0.3007]
[1672650762431,0.1635,16737.0,16735.0,4.3195]
[1672650762643,0.1645,16737.0,16736.0,0.3007]
[1672650764322,0.1645,16737.0,16735.0,4.3195]
[1672650764530,0.1645,16737.0,16736.0,0.3007]
[1672650771054,0.1645,16737.0,16735.0,4.3195]
[1672650771369,0.1645,16737.0,16735.0,4.6202]
[1672650772209,0.1635,16737.0,16735.0,4.6202]
[1672650774200,0.1495,16736.0,16735.0,4.4707]
[1672650775270,0.1635,16737.0,16735.0,4.6202]
[1672650775467,0.014,16736.0,16735.0,4.6202]
[1672650775879,0.014,16736.0,16735.0,4.3195]
[1672650776099,0.014,16736.0,16735.0,4.6202]
[1672650777146,0.014,16736.0,16735.0,4.3195]
[1672650777359,0.014,16736.0,16735.0,4.6202]
[1672650785871,0.014,16736.0,16735.0,4.3195]
[1672650786082,0.014,16736.0,16735.0,4.6202]
[1672650789756,0.014,16736.0,16735.0,4.3195]
[1672650789968,0.014,16736.0,16735.0,4.6202]
[1672650803005,0.014,16736.0,16735.0,4.6199932]
[1672650806784,0.014,16736.0,16735.0,4.3192932]
[1672650806998,0.014,16736.0,16735.0,4.6199932]
[1672650808044,0.014,16736.0,16735.0,4.3192932]
[1672650808258,0.014,16736.0,16735.0,4.6199932]
[1672650812146,0.01385729,16736.0,16735.0,4.6199932]
[1672650814026,0.01385729,16736.0,16735.0,4.3192932]
[1672650814234,0.01385729,16736.0,16735.0,4.6199932]
[1672650816543,0.41385729,16736.0,16735.0,4.6199932]
[1672650816753,0.01385729,16736.0,16735.0,4.70961417]
[1672650816972,0.01385729,16736.0,16735.0,4.6199932]
[1672650817396,0.01385729,16736.0,16735.0,4.70961417]
[1672650817921,0.01385729,16736.0,16735.0,4.6199932]
[1672650818861,0.01385729,16736.0,16735.0,4.6189932]
[1672650820437,0.1495,16735.0,16733.0,0.3007]
[1672650820652,0.1495,16734.0,16733.0,0.3007]
[1672650820868,0.1495,16734.0,16733.0,0.7007]
[1672650822538,0.1635,16734.0,16733.0,0.7007]
[1672650824755,0.1635,16734.0,16733.0,0.4]
[1672650839469,0.1635,16734.0,16733.0,0.7007]
[1672650850400,0.1635,16734.0,16733.0,0.4]
[1672650850612,0.1635,16734.0,16733.0,0.7007]
[1672650858918,0.014,16734.0,16733.0,0.7007]
[1672650860823,0.214,16734.0,16733.0,0.7007]
[1672650862082,0.214,16734.0,16733.0,0.4]
[1672650862308,0.214,16734.0,16733.0,0.7007]
[1672650864393,0.014,16734.0,16733.0,0.7007]
[1672650865226,0.1635,16734.0,16733.0,0.7007]
[1672650866802,0.1635,16734.0,16733.0,0.39984643]
[1672650867009,0.1635,16734.0,16733.0,0.70054643]
[1672650869120,0.1635,16734.0,16733.0,0.3007]
[1672650869433,0.3118,16734.0,16731.0,0.3007]
[1672650869643,0.1481,16732.0,16731.0,0.7007]
[1672650871320,0.1621,16732.0,16731.0,0.7007]
[1672650872692,0.1481,16732.0,16731.0,0.7007]
[1672650873011,0.1621,16732.0,16731.0,0.7007]
[1672650875215,0.014,16732.0,16731.0,0.8494]
[1672650875731,0.014,16732.0,16731.0,0.93902097]
[1672650877210,0.014,16732.0,16731.0,1.53662097]
[1672650877415,0.014,16732.0,16731.0,1.58143145]
[1672650877946,0.014,16732.0,16731.0,1.67101978]
[1672650881194,0.014,16732.0,16731.0,1.37031978]
[1672650881509,0.014,16732.0,16731.0,1.67101978]
[1672650882147,0.014,16732.0,16731.0,1.58143145]
[1672650882565,0.014,16732.0,16731.0,1.28073145]
[1672650882876,0.014,16732.0,16731.0,1.58143145]
[1672650883929,0.014,16732.0,16731.0,1.67102468]
[1672650884554,0.014,16732.0,16731.0,1.53659323]
[1672650886042,0.014,16732.0,16731.0,1.67102468]
[1672650886232,0.014,16732.0,16731.0,1.53659323]
[1672650886653,0.014,16732.0,16731.0,1.447]
[1672650889396,0.014,16732.0,16731.0,1.4469]
[1672650895487,0.014,16732.0,16731.0,1.53659323]
[1672650898008,0.014,16732.0,16731.0,1.447]
[1672650900220,0.014,16732.0,16731.0,1.53659323]
[1672650901683,0.014,16732.0,16731.0,1.447]
[1672650905160,0.014,16732.0,16731.0,1.2975]
[1672650905370,0.1635,16732.0,16731.0,0.7007]
[1672650914720,0.1635,16732.0,16731.0,0.70051602]
[1672650915245,0.014,16732.0,16731.0,0.84911602]
[1672650916077,0.214,16732.0,16731.0,0.84911602]
[1672650916401,0.214,16732.0,16731.0,0.4493]
[1672650916607,0.214,16732.0,16731.0,0.8493]
[1672650920286,0.014,16732.0,16731.0,0.8493]
[1672650923530,0.0138124,16732.0,16731.0,0.8493]
[1672650923952,0.0138124,16732.0,16731.0,0.93889323]
[1672650924598,0.0138124,16732.0,16731.0,0.93979323]
[1672650925017,0.0138124,16732.0,16731.0,0.63909323]
[1672650925229,0.0138124,16732.0,16731.0,0.93979323]
[1672650928263,0.0138124,16732.0,16731.0,1.07422468]
[1672650928480,0.0138124,16732.0,16731.0,0.93979323]
[1672650928798,0.0138124,16732.0,16731.0,1.07422468]
[1672650929421,0.0138124,16732.0,16731.0,0.93979323]
[1672650931003,0.0138124,16732.0,16731.0,0.63909323]
[1672650931216,0.0138124,16732.0,16731.0,0.93979323]
[1672650935206,0.0138124,16732.0,16731.0,0.8502]
[1672650935407,0.0138124,16732.0,16731.0,0.93979323]
[1672650948237,0.0138124,16732.0,16731.0,0.8502]
[1672650948959,0.4138124,16732.0,16731.0,0.8502]
[1672650950013,0.0138124,16732.0,16731.0,0.8502]
[1672650951070,0.0138124,16732.0,16731.0,0.5495]
[1672650951287,0.0138124,16732.0,16731.0,0.8502]
[1672650953486,0.2138124,16732.0,16731.0,0.8502]
[1672650953910,0.0138124,16732.0,16731.0,0.8502]
[1672650955277,0.4138124,16732.0,16731.0,0.8502]
[1672650956118,0.0138124,16732.0,16731.0,0.8502]
[1672650957162,0.2138124,16732.0,16731.0,0.8502]
[1672650958758,0.2138124,16732.0,16731.0,0.5495]
[1672650958957,0.2138124,16732.0,16731.0,0.8502]
[1672650959168,0.0138124,16732.0,16731.0,0.8502]
[1672650960114,0.2138124,16732.0,16731.0,0.8502]
[1672650962328,0.0138124,16732.0,16731.0,0.8502]
[1672650962527,0.014,16732.0,16731.0,0.8502]
[1672650964333,0.314,16732.0,16731.0,0.8502]
[1672650965265,0.314,16732.0,16731.0,0.7007]
[1672650966320,0.014,16732.0,16731.0,0.7007]
[1672650977258,0.014,16732.0,16731.0,0.70046656]
[1672650979356,0.014,16732.0,16731.0,0.79005979]
[1672650980720,0.014,16732.0,16731.0,0.70046656]
[1672650980924,0.014,16732.0,16731.0,0.79005979]
[1672650981135,0.014,16732.0,16731.0,0.70046656]
[1672650981770,0.014,16732.0,16731.0,0.79005979]
[1672650984929,0.014,16732.0,16731.0,0.92449124]
[1672650985338,0.014,16732.0,16731.0,1.73069801]
[1672650985545,0.48947315,16736.0,16731.0,2.41962629]
[1672650985764,0.48947315,16736.0,16735.0,0.3007]
[1672650985975,0.1495,16736.0,16735.0,0.3007]
[1672650986711,0.1495,16736.0,16735.0,0.6007]
[1672650986924,0.1655,16736.0,16735.0,0.6137]
[1672650989344,0.1655,16736.0,16735.0,0.313]
[1672651001527,0.5655,16736.0,16735.0,0.313]
[1672651003626,0.1655,16736.0,16735.0,0.313]
[1672651004251,0.016,16736.0,16735.0,0.4611]
[1672651004671,0.016,16736.0,16735.0,1.0583]
[1672651004886,0.37072,16738.0,16735.0,1.2075]
[1672651005195,0.4761,16741.0,16737.0,1.1962]
[1672651005196,0.4751,16741.0,16737.0,1.1962]
[1672651005409,0.4751,16741.0,16739.0,0.4502]
[1672651005621,0.1481,16741.0,16739.0,0.4502]
[1672651005831,0.3,16740.0,16739.0,0.4502]
[1672651007086,0.1541,16741.0,16739.0,0.4502]
[1672651007620,0.116,16740.0,16739.0,0.4532]
[1672651007831,0.116,16740.0,16739.0,0.8532]
[1672651008449,0.2641,16741.0,16739.0,0.8532]
[1672651008666,0.2641,16741.0,16740.0,0.3]
[1672651008887,0.1481,16741.0,16740.0,0.3]
[1672651009509,0.4,16742.0,16740.0,0.3]
[1672651009510,0.5495,16742.0,16740.0,0.3]
[1672651010449,0.116,16741.0,16740.0,0.3]
[1672651012032,0.6665,16742.0,16740.0,0.303]
[1672651012237,0.6665,16742.0,16740.0,0.3]
[1672651012238,0.5495,16742.0,16740.0,0.3]
[1672651012454,0.117,16741.0,16740.0,0.303]
[1672651014978,0.2665,16741.0,16740.0,0.303]
[1672651023072,0.2665,16741.0,16740.0,0.6037]
[1672651024646,0.2665,16741.0,16740.0,0.303]
[1672651026426,0.2665,16741.0,16740.0,0.003]
[1672651026638,0.2656,16741.0,16740.0,0.003]
[1672651030444,0.5663,16741.0,16740.0,0.003]
[1672651030952,0.5663,16741.0,16740.0,0.203]
[1672651033484,0.2656,16741.0,16740.0,0.203]
[1672651033693,0.5663,16741.0,16740.0,0.203]
[1672651036938,0.2656,16741.0,16740.0,0.203]
[1672651037995,0.2656,16741.0,16740.0,0.003]
[1672651048411,0.5663,16741.0,16740.0,0.003]
[1672651048619,0.2656,16741.0,16740.0,0.003]
[1672651048827,0.5663,16741.0,16740.0,0.003]
[1672651051886,0.2656,16741.0,16740.0,0.003]
[1672651052092,0.5663,16741.0,16740.0,0.003]
[1672651052936,0.5663,16741.0,16740.0,0.00289274]
[1672651058390,0.7158,16741.0,16740.0,0.00289274]
[1672651066696,0.4151,16741.0,16740.0,0.00289274]
[1672651066908,0.7158,16741.0,16740.0,0.00289274]
[1672651071420,0.4151,16741.0,16740.0,0.00289274]
[1672651071626,0.7158,16741.0,16740.0,0.00289274]
[1672651094751,0.4151,16741.0,16740.0,0.00289274]
[1672651094964,0.7158,16741.0,16740.0,0.00289274]
[1672651096951,0.4151,16741.0,16740.0,0.00289274]
[1672651097167,0.7158,16741.0,16740.0,0.00289274]
[1672651097376,0.7158,16741.0,16740.0,0.00279682]
[1672651099491,0.4151,16741.0,16740.0,0.00279682]
[1672651099700,0.7158,16741.0,16740.0,0.00279682]
[1672651101063,0.4151,16741.0,16740.0,0.00279682]
[1672651101268,0.7158,16741.0,16740.0,0.00279682]
[1672651124715,0.4151,16741.0,16740.0,0.00279682]
[1672651125132,0.7158,16741.0,16740.0,0.00279682]
[1672651130589,0.4151,16741.0,16740.0,0.00279682]
[1672651130914,0.7158,16741.0,16740.0,0.00279682]
[1672651138045,0.4177,16741.0,16740.0,0.00279682]
[1672651138475,0.5663,16741.0,16740.0,0.00279682]
[1672651145930,0.2656,16741.0,16740.0,0.00279682]
[1672651146253,0.24276673,16741.0,16740.0,0.00279682]
[1672651146670,0.24276673,16741.0,16740.0,0.70279682]
[1672651146883,0.24276673,16741.0,16740.0,1.00349682]
[1672651147406,0.3007,16745.0,16740.0,2.79779682]
[1672651147606,0.7657,16746.0,16743.0,0.1495]
[1672651147821,0.1495,16746.0,16743.0,0.1495]
[1672651148457,0.4,16745.0,16743.0,0.1495]
[1672651148873,0.4,16745.0,16743.0,0.1525]
[1672651149198,0.6675,16746.0,16744.0,0.4]
[1672651149925,0.4,16745.0,16744.0,0.4]
[1672651151914,0.5491,16745.0,16744.0,0.4]
[1672651152545,0.5491,16745.0,16743.0,0.4]
[1672651152761,0.1483,16744.0,16743.0,0.4]
[1672651153607,0.1483,16744.0,16743.0,0.445]
[1672651155278,0.1495,16744.0,16743.0,0.445]
[1672651165378,0.5487,16745.0,16743.0,0.5943]
[1672651166217,0.5487,16745.0,16743.0,0.5493]
[1672651173794,0.5487,16745.0,16743.0,1.1461]
[1672651175251,0.5487,16745.0,16743.0,1.1463]
[1672651185264,0.1495,16744.0,16743.0,1.2975]
[1672651187365,0.1495,16744.0,16743.0,0.7007]
[1672651189666,0.1495,16744.0,16743.0,0.2]
[1672651195242,0.1486,16744.0,16743.0,0.2]
[1672651198712,0.1486,16744.0,16743.0,0.19977387]
[1672651205234,0.1495,16744.0,16743.0,0.19977387]
[1672651216169,0.1495,16744.0,16741.0,0.1487]
[1672651216479,0.1495,16743.0,16742.0,0.4]
[1672651217431,0.1495,16743.0,16742.0,0.432]
[1672651217745,0.1495,16744.0,16742.0,0.8822]
[1672651221843,0.1495,16744.0,16742.0,0.5815]
[1672651222685,0.3,16743.0,16742.0,0.5815]
[1672651224254,0.4495,16743.0,16742.0,0.432]
[1672651237502,0.1495,16743.0,16742.0,0.432]
[1672651242758,0.1495,16743.0,16742.0,0.7327]
[1672651245278,0.1495,16744.0,16742.0,0.8822]
[1672651246123,0.2,16743.0,16742.0,0.8822]
[1672651247171,0.2,16743.0,16742.0,0.88206466]
[1672651250416,0.1495,16744.0,16742.0,0.88206466]
[1672651251266,0.2,16743.0,16742.0,0.88146466]
[1672651251472,0.2,16743.0,16742.0,0.84946466]
[1672651251678,0.2,16743.0,16742.0,0.88146466]
[1672651254002,0.19976119,16743.0,16742.0,0.88146466]
[1672651254743,0.19976119,16743.0,16742.0,0.58076466]
[1672651255359,0.34926119,16743.0,16742.0,0.43186466]
[1672651255574,0.34926119,16743.0,16742.0,0.032]
[1672651255795,0.34926119,16743.0,16742.0,0.332]
[1672651257569,0.34926119,16743.0,16742.0,0.032]
[1672651257786,0.49676119,16743.0,16742.0,0.032]
[1672651262200,0.34806119,16743.0,16742.0,0.032]
[1672651265241,0.34926119,16743.0,16742.0,0.032]
[1672651265454,0.34926119,16743.0,16742.0,0.332]
[1672651271334,0.64996119,16743.0,16742.0,0.332]
[1672651273967,0.34926119,16743.0,16742.0,0.332]
[1672651275221,0.34836119,16743.0,16742.0,0.332]
[1672651289214,0.3007,16744.0,16742.0,0.4815]
[1672651289418,0.4,16745.0,16743.0,0.1495]
[1672651289739,0.4,16745.0,16744.0,0.5495]
[1672651291940,0.4,16745.0,16744.0,0.5545]
[1672651294883,0.5495,16745.0,16744.0,0.005]
[1672651296459,0.8502,16745.0,16744.0,0.005]
[1672651298890,0.5495,16745.0,16744.0,0.005]
[1672651299102,0.8502,16745.0,16744.0,0.005]
[1672651302037,0.8502,16745.0,16744.0,0.00490266]
[1672651311939,0.5495,16745.0,16744.0,0.00490266]
[1672651312146,0.8502,16745.0,16744.0,0.00490266]
[1672651312877,0.8502,16745.0,16744.0,0.15440266]
[1672651312878,0.4,16745.0,16744.0,0.15440266]
[1672651313504,0.4502,16747.0,16744.0,0.15440266]
[1672651313714,0.4,16746.0,16745.0,0.1489]
[1672651314764,0.4,16746.0,16745.0,0.1569]
[1672651315397,0.4,16746.0,16745.0,0.1574]
[1672651320765,0.5495,16746.0,16745.0,0.008]
[1672651323494,0.8502,16746.0,16745.0,0.008]
[1672651335166,0.5495,16746.0,16745.0,0.008]
[1672651335384,0.5481,16746.0,16745.0,0.008]
[1672651339058,0.8488,16746.0,16745.0,0.008]
[1672651340633,0.5481,16746.0,16745.0,0.008]
[1672651340845,0.1481,16746.0,16745.0,0.008]
[1672651345373,0.5491,16747.0,16745.0,0.1573]
[1672651345791,0.5495,16747.0,16746.0,0.2]
[1672651347160,0.5495,16747.0,16746.0,0.209]
[1672651349471,0.1495,16747.0,16746.0,0.209]
[1672651349785,0.4502,16748.0,16746.0,0.3575]
[1672651350099,0.4,16747.0,16746.0,0.3575]
[1672651350729,0.4,16747.0,16746.0,0.3565]
[1672651352085,0.4,16747.0,16746.0,0.3485]
[1672651352302,0.4,16747.0,16746.0,0.3565]
[1672651352941,0.4,16747.0,16746.0,0.35641598]
[1672651355253,0.4,16747.0,16746.0,0.35681598]
[1672651363769,0.4502,16748.0,16746.0,0.35681598]
[1672651364192,0.4,16747.0,16746.0,0.35681598]
[1672651364403,0.4,16747.0,16746.0,0.65451598]
[1672651364720,0.27078538,16750.0,16746.0,0.65451598]
[1672651364917,0.27078538,16750.0,16749.0,0.1481]
[1672651365131,0.1495,16751.0,16749.0,0.1481]
[1672651365353,0.1495,16751.0,16749.0,0.1495]
[1672651365662,0.4502,16752.0,16750.0,0.1495]
[1672651366073,0.4502,16752.0,16750.0,0.5495]
[1672651366506,0.4,16751.0,16750.0,0.5495]
[1672651367656,0.4,16751.0,16750.0,0.5605]
[1672651368076,0.4,16751.0,16750.0,0.5595]
[1672651370604,0.4,16751.0,16750.0,0.5585]
[1672651374697,0.4,16751.0,16750.0,0.1585]
[1672651375337,0.4,16751.0,16750.0,0.009]
[1672651375866,0.4,16751.0,16750.0,0.3585]
[1672651376604,0.4,16751.0,16750.0,0.5585]
[1672651377338,0.7007,16751.0,16750.0,0.5585]
[1672651377866,0.4,16751.0,16750.0,0.5585]
[1672651378388,0.7007,16751.0,16750.0,0.3585]
[1672651378599,0.7007,16751.0,16750.0,0.1585]
[1672651385213,0.8502,16751.0,16750.0,0.009]
[1672651387314,0.9991,16751.0,16750.0,0.009]
[1672651393202,0.85,16751.0,16750.0,0.009]
[1672651395089,0.8499335,16751.0,16750.0,0.009]
[1672651396567,0.8493335,16751.0,16750.0,0.009]
[1672651405284,0.8501335,16751.0,16750.0,0.009]
[1672651406218,0.5494335,16751.0,16750.0,0.009]
[1672651406428,0.8501335,16751.0,16750.0,0.009]
[1672651412954,0.5494335,16751.0,16750.0,0.009]
[1672651413164,0.8501335,16751.0,16750.0,0.009]
[1672651415268,0.9984335,16751.0,16750.0,0.009]
[1672651416008,0.9984335,16751.0,16746.0,0.19991598]
[1672651416009,1.1472335,16751.0,16746.0,0.19991598]
[1672651416221,0.1495,16748.0,16746.0,0.19991598]
[1672651416634,0.3,16747.0,16746.0,0.39991598]
[1672651417381,0.3,16747.0,16746.0,0.42291598]
[1672651418425,0.3,16747.0,16746.0,0.39991598]
[1672651418635,0.3,16747.0,16746.0,0.42291598]
[1672651420316,0.6007,16747.0,16746.0,0.023]
[1672651420530,0.7502,16747.0,16746.0,0.023]
[1672651421063,0.8997,16747.0,16746.0,0.023]
[1672651422102,1.048,16747.0,16746.0,0.023]
[1672651422321,2.8421,16747.0,16744.0,0.4]
[1672651422537,0.747,16745.0,16742.0,0.3052]
[1672651422843,0.1486,16743.0,16740.0,0.3073]
[1672651423052,0.1495,16741.0,16739.0,0.7493]
[1672651423262,0.1495,16741.0,16739.0,0.4493]
[1672651424208,0.2102,16743.0,16740.0,0.4]
[1672651424418,0.1495,16741.0,16740.0,0.4]
[1672651425047,0.1515,16741.0,16740.0,0.4]
[1672651425465,0.1515,16741.0,16740.0,0.518]
[1672651428620,0.4522,16741.0,16740.0,0.118]
[1672651428835,0.6017,16741.0,16740.0,0.118]
[1672651435347,0.4522,16741.0,16740.0,0.118]
[1672651435568,0.1515,16741.0,16740.0,0.118]
[1672651454179,0.4522,16741.0,16740.0,0.118]
[1672651455225,0.6003,16741.0,16740.0,0.118]
[1672651460375,0.4508,16741.0,16740.0,0.118]
[1672651463314,0.1501,16741.0,16740.0,0.118]
[1672651463530,0.4508,16741.0,16740.0,0.118]
[1672651465641,0.1501,16741.0,16740.0,0.118]
[1672651471108,0.4508,16741.0,16740.0,0.118]
[1672651474686,0.4508,16741.0,16740.0,0.1178841]
[1672651476984,0.1501,16741.0,16740.0,0.1178841]
[1672651477200,0.4508,16741.0,16740.0,0.1178841]
[1672651479095,0.1501,16741.0,16740.0,0.1178841]
[1672651479305,0.4508,16741.0,16740.0,0.1178841]
[1672651479940,0.1501,16741.0,16740.0,0.1178841]
[1672651480255,0.4508,16741.0,16740.0,0.1178841]
[1672651488969,0.1501,16741.0,16740.0,0.1178841]
[1672651489292,0.4508,16741.0,16740.0,0.1178841]
[1672651505907,0.1501,16741.0,16740.0,0.1178841]
[1672651506114,0.4508,16741.0,16740.0,0.1178841]
[1672651511990,0.1501,16741.0,16740.0,0.1178841]
[1672651512199,0.4508,16741.0,16740.0,0.1178841]
[1672651512416,0.1501,16741.0,16740.0,0.1178841]
[1672651512727,0.4508,16741.0,16740.0,0.1178841]
[1672651518720,0.1501,16741.0,16740.0,0.1178841]
[1672651518936,0.4508,16741.0,16740.0,0.1178841]
[1672651524716,0.4508,16741.0,16740.0,0.11767524]
[1672651526400,0.6003,16741.0,16740.0,0.11767524]
[1672651529651,0.2996,16741.0,16740.0,0.11767524]
[1672651529862,0.6003,16741.0,16740.0,0.11767524]
[1672651540484,0.7498,16741.0,16740.0,0.11767524]
[1672651540697,0.3,16740.0,16734.0,0.9374]
[1672651540903,0.1495,16737.0,16735.0,0.4]
[1672651541220,0.5495,16736.0,16735.0,0.4]
[1672651542051,0.5495,16736.0,16735.0,0.404]
[1672651542052,0.5635,16736.0,16735.0,0.404]
[1672651543739,0.5495,16736.0,16735.0,0.4]
[1672651543944,0.5635,16736.0,16735.0,0.404]
[1672651545420,0.5623,16736.0,16735.0,0.404]
[1672651553405,0.1623,16736.0,16735.0,0.404]
[1672651555307,0.014,16736.0,16735.0,0.5525]
[1672651556354,0.014,16736.0,16735.0,0.5535]
[1672651557822,0.014,16736.0,16735.0,0.8542]
[1672651570966,0.014,16736.0,16735.0,0.5535]
[1672651571172,0.014,16736.0,16735.0,0.8542]
[1672651575274,0.014,16736.0,16735.0,0.8528]
[1672651580217,0.014,16736.0,16735.0,0.5521]
[1672651585264,0.014,16736.0,16735.0,0.5526]
[1672651587465,0.014,16736.0,16735.0,0.55240164]
[1672651588727,0.014,16736.0,16735.0,0.55230164]
[1672651590624,0.014,16736.0,16735.0,0.85300164]
[1672651597446,0.014,16736.0,16735.0,0.55230164]
[1672651597655,0.014,16736.0,16735.0,0.85300164]
[1672651601660,0.014,16736.0,16735.0,0.55230164]
[1672651601972,0.014,16736.0,16735.0,0.85300164]
[1672651603020,0.014,16736.0,16735.0,0.55230164]
[1672651603232,0.014,16736.0,16735.0,0.85300164]
[1672651611430,0.014,16736.0,16735.0,0.55230164]
[1672651611635,0.014,16736.0,16735.0,0.85300164]
[1672651615320,0.014,16736.0,16735.0,0.55230164]
[1672651615740,0.014,16736.0,16735.0,0.85300164]
[1672651624473,0.014,16736.0,16735.0,0.55230164]
[1672651624675,0.014,16736.0,16735.0,0.85300164]
[1672651628357,0.014,16736.0,16735.0,0.55230164]
[1672651628669,0.014,16736.0,16735.0,0.85300164]
[1672651629725,0.014,16736.0,16735.0,0.94263795]
[1672651630247,0.014,16736.0,16735.0,0.64193795]
[1672651630452,0.014,16736.0,16735.0,0.94263795]
[1672651631086,0.014,16736.0,16735.0,0.85300164]
[1672651635815,0.014,16736.0,16735.0,0.55230164]
[1672651636132,0.014,16736.0,16735.0,0.85300164]
[1672651640762,0.014,16736.0,16735.0,0.85287226]
[1672651644859,0.014,16736.0,16735.0,0.94250857]
[1672651645485,0.014,16736.0,16735.0,0.85287226]
[1672651646855,0.014,16736.0,16735.0,0.94250857]
[1672651647058,0.014,16736.0,16735.0,0.85287226]
[1672651655984,0.014,16736.0,16735.0,0.55217226]
[1672651656203,0.014,16736.0,16735.0,0.85287226]
[1672651659988,0.014,16736.0,16735.0,0.55217226]
[1672651660196,0.014,16736.0,16735.0,0.85287226]
[1672651660929,0.014,16736.0,16735.0,0.55217226]
[1672651661251,0.014,16736.0,16735.0,0.85287226]
[1672651667345,0.014,16736.0,16735.0,0.55217226]
[1672651667549,0.014,16736.0,16735.0,0.85287226]
[1672651681109,0.014,16736.0,16735.0,0.55217226]
[1672651681422,0.014,16736.0,16735.0,0.85287226]
[1672651683103,0.014,16736.0,16735.0,0.55217226]
[1672651683313,0.014,16736.0,16735.0,0.85287226]
[1672651684360,0.014,16736.0,16735.0,0.55217226]
[1672651684562,0.014,16736.0,16735.0,0.85287226]
[1672651688461,0.014,16736.0,16735.0,0.55217226]
[1672651688671,0.014,16736.0,16735.0,0.85287226]
[1672651690664,0.014,16736.0,16735.0,0.94250857]
[1672651691296,0.014,16736.0,16735.0,1.07696304]
[1672651691510,0.014,16736.0,16735.0,0.98732673]
[1672651692138,0.014,16736.0,16735.0,1.07699204]
[1672651694133,0.014,16736.0,16735.0,1.07689194]
[1672651695074,0.014,16736.0,16735.0,0.94243747]
[1672651695597,0.014,16736.0,16735.0,1.07689194]
[1672651695816,0.014,16736.0,16735.0,0.94243747]
[1672651697068,0.014,16736.0,16735.0,1.53963747]
[1672651697278,0.014,16736.0,16735.0,1.82359194]
[1672651697486,0.014,16736.0,16735.0,1.59947216]
[1672651702746,0.014,16736.0,16735.0,1.29877216]
[1672651702966,0.014,16736.0,16735.0,1.59947216]
[1672651705064,0.014,16736.0,16735.0,1.82359194]
[1672651705897,0.014,16736.0,16735.0,1.52289194]
[1672651706110,0.014,16736.0,16735.0,1.82359194]
[1672651708743,0.014,16736.0,16735.0,1.68913747]
[1672651709161,0.014,16736.0,16735.0,1.82359194]
[1672651712424,0.014,16736.0,16735.0,1.73392663]
[1672651712632,0.014,16736.0,16735.0,1.59947216]
[1672651714846,0.014,16736.0,16735.0,1.68913747]
[1672651716104,0.014,16736.0,16735.0,1.59947216]
[1672651719993,0.014,16736.0,16735.0,1.38843747]
[1672651720203,0.014,16736.0,16735.0,1.68913747]
[1672651723255,0.01390572,16736.0,16735.0,1.68913747]
[1672651727781,0.01390572,16736.0,16735.0,1.38843747]
[1672651727992,0.01390572,16736.0,16735.0,1.68913747]
[1672651734607,0.01390572,16736.0,16735.0,1.82359194]
[1672651735244,0.01390572,16736.0,16735.0,1.59947216]
[1672651735888,0.01390572,16736.0,16735.0,1.29877216]
[1672651736096,0.01390572,16736.0,16735.0,1.59947216]
[1672651737454,0.01390572,16736.0,16735.0,1.29877216]
[1672651737667,0.014,16736.0,16735.0,1.59947216]
[1672651738824,0.3,16738.0,16735.0,1.59547216]
[1672651739041,0.3,16738.0,16737.0,0.4493]
[1672651739982,0.316,16738.0,16737.0,0.1526]
[1672651740299,0.316,16738.0,16737.0,0.4533]
[1672651746815,0.316,16738.0,16737.0,0.1526]
[1672651747019,0.316,16738.0,16737.0,0.4533]
[1672651749654,0.016,16738.0,16737.0,0.4533]
[1672651751646,0.016,16738.0,16737.0,0.1526]
[1672651751967,0.016,16738.0,16737.0,0.4533]
[1672651755332,0.016,16738.0,16737.0,0.4542]
[1672651759016,0.016,16738.0,16737.0,0.004]